[Event "*** MasterClass Titled Tuesday Blitz"]
[Site "Chess.com"]
[Date "2017.08.01"]
[Round "5"]
[White "Al_Shima"]
[Black "chessdude"]
[Result "0-1"]
[WhiteElo "2383"]
[BlackElo "2438"]
[TimeControl "180+2"]
[EndTime "14:03:02 PDT"]
[Termination "chessdude won by resignation"]

1. b3 {[%clk 0:03:01.9]} 1... d5 {[%clk 0:02:59]} 2. Bb2 {[%clk 0:03:02.7]} 2...
Bg4 {[%clk 0:03:00.1]} 3. f3 {[%clk 0:03:03.4]} 3... Bh5 {[%clk 0:03:01.4]} 4.
e4 {[%clk 0:03:04.3]} 4... Bg6 {[%clk 0:02:54.2]} 5. Qe2 {[%clk 0:03:03.4]} 5...
c6 {[%clk 0:02:52.6]} 6. Nc3 {[%clk 0:03:02.3]} 6... d4 {[%clk 0:02:48.7]} 7.
Nd1 {[%clk 0:03:02.9]} 7... e5 {[%clk 0:02:49.6]} 8. Nf2 {[%clk 0:02:56.2]} 8...
Nf6 {[%clk 0:02:49]} 9. g4 {[%clk 0:02:48.5]} 9... c5 {[%clk 0:02:41.9]} 10.
Qb5+ {[%clk 0:02:46.4]} 10... Qd7 {[%clk 0:02:42.5]} 11. Qxd7+ {[%clk
0:02:46.5]} 11... Nfxd7 {[%clk 0:02:42.8]} 12. Bb5 {[%clk 0:02:46.3]} 12... a6
{[%clk 0:02:42.6]} 13. Bxd7+ {[%clk 0:02:46]} 13... Kxd7 {[%clk 0:02:43.8]} 14.
a4 {[%clk 0:02:47.4]} 14... Nc6 {[%clk 0:02:44.1]} 15. h4 {[%clk 0:02:45.5]}
15... h5 {[%clk 0:02:44.5]} 16. Ne2 {[%clk 0:02:33]} 16... Bd6 {[%clk
0:02:45.2]} 17. Ng3 {[%clk 0:02:33.8]} 17... b5 {[%clk 0:02:39.8]} 18. Ke2
{[%clk 0:02:33.8]} 18... f6 {[%clk 0:02:28.2]} 19. gxh5 {[%clk 0:02:25.7]} 19...
Bf7 {[%clk 0:02:27.4]} 20. Nf5 {[%clk 0:02:25.4]} 20... Rag8 {[%clk 0:02:13.9]}
21. h6 {[%clk 0:02:05.6]} 21... g6 {[%clk 0:02:08.5]} 22. Nxd6 {[%clk
0:02:04.7]} 22... Kxd6 {[%clk 0:02:09.9]} 23. axb5 {[%clk 0:02:05.1]} 23... axb5
{[%clk 0:02:11.8]} 24. Ng4 {[%clk 0:02:05.8]} 24... f5 {[%clk 0:02:04.8]} 25.
Nf6 {[%clk 0:01:49.7]} 25... Rf8 {[%clk 0:02:05.3]} 26. h7 {[%clk 0:01:45.2]}
26... Be6 {[%clk 0:02:05.6]} 27. Nd5 {[%clk 0:01:36.3]} 27... Bxd5 {[%clk
0:02:06.9]} 28. exd5 {[%clk 0:01:37]} 28... Kxd5 {[%clk 0:02:08.4]} 29. h5
{[%clk 0:01:36.6]} 29... Rxh7 {[%clk 0:01:46.9]} 30. hxg6 {[%clk 0:01:37.2]}
30... Rg7 {[%clk 0:01:48.3]} 31. Rag1 {[%clk 0:01:32.8]} 31... Rf6 {[%clk
0:01:49.2]} 32. Rh6 {[%clk 0:01:24.5]} 32... Ne7 {[%clk 0:01:50]} 33. Rg5 {[%clk
0:01:21.6]} 33... Rfxg6 {[%clk 0:01:43.7]} 34. Rgxg6 {[%clk 0:01:14]} 34... Nxg6
{[%clk 0:01:44.1]} 35. d3 {[%clk 0:01:09.2]} 35... Nf4+ {[%clk 0:01:44.4]} 36.
Kf1 {[%clk 0:01:10.1]} 36... Ng2 {[%clk 0:01:38.9]} 37. Bc1 {[%clk 0:01:10.2]}
37... b4 {[%clk 0:01:23]} 38. Kf2 {[%clk 0:01:08.4]} 38... f4 {[%clk 0:01:17.8]}
39. Rh8 {[%clk 0:01:04.4]} 39... Ne3 {[%clk 0:01:18.4]} 40. Rd8+ {[%clk
0:01:03.2]} 40... Ke6 {[%clk 0:01:18.8]} 41. Bxe3 {[%clk 0:00:46.1]} 41... dxe3+
{[%clk 0:01:14.8]} 42. Kf1 {[%clk 0:00:46.6]} 42... Rg3 {[%clk 0:01:14.9]} 43.
Rc8 {[%clk 0:00:42.3]} 43... Rxf3+ {[%clk 0:01:14.9]} 44. Ke1 {[%clk 0:00:43.6]}
44... Rh3 {[%clk 0:01:13.3]} 45. Rxc5 {[%clk 0:00:43.8]} 45... f3 {[%clk
0:01:13.2]} 0-1

[Event "*** MasterClass Titled Tuesday Blitz"]
[Site "Chess.com"]
[Date "2017.08.01"]
[Round "5"]
[White "Giraffe_Chess"]
[Black "toad"]
[Result "1-0"]
[WhiteElo "2223"]
[BlackElo "2112"]
[TimeControl "180+2"]
[EndTime "14:03:04 PDT"]
[Termination "Giraffe_Chess won by checkmate"]

1. e4 {[%clk 0:03:01.9]} 1... c5 {[%clk 0:02:59.4]} 2. Nf3 {[%clk 0:03:01.6]}
2... d6 {[%clk 0:03:00.4]} 3. d4 {[%clk 0:03:03]} 3... cxd4 {[%clk 0:03:02.3]}
4. Nxd4 {[%clk 0:03:04.5]} 4... Nf6 {[%clk 0:03:03.5]} 5. Nc3 {[%clk 0:03:05.8]}
5... a6 {[%clk 0:03:04.8]} 6. Bc4 {[%clk 0:03:06.7]} 6... e6 {[%clk 0:03:05.5]}
7. f4 {[%clk 0:03:05.9]} 7... Nbd7 {[%clk 0:03:05]} 8. f5 {[%clk 0:03:04]} 8...
Nc5 {[%clk 0:03:01.8]} 9. fxe6 {[%clk 0:03:02.1]} 9... fxe6 {[%clk 0:02:48]} 10.
O-O {[%clk 0:02:53.6]} 10... Be7 {[%clk 0:02:45.3]} 11. b4 {[%clk 0:02:47.2]}
11... Ncxe4 {[%clk 0:02:37.7]} 12. Nxe4 {[%clk 0:02:45.3]} 12... Nxe4 {[%clk
0:02:39]} 13. Qf3 {[%clk 0:01:57.4]} 13... Nf6 {[%clk 0:02:29.8]} 14. Nxe6
{[%clk 0:01:55.2]} 14... Bxe6 {[%clk 0:01:21.4]} 15. Bxe6 {[%clk 0:01:57.1]}
15... Qb6+ {[%clk 0:01:22.8]} 16. Be3 {[%clk 0:01:55.3]} 16... Qc6 {[%clk
0:01:20.5]} 17. Qg3 {[%clk 0:01:16.3]} 17... Qe4 {[%clk 0:00:51.1]} 18. Bf5
{[%clk 0:01:12.5]} 18... Qe5 {[%clk 0:00:43.7]} 19. Qf3 {[%clk 0:00:44.3]} 19...
O-O {[%clk 0:00:41]} 20. Rae1 {[%clk 0:00:34.2]} 20... Qb5 {[%clk 0:00:12.5]}
21. Bd4 {[%clk 0:00:22.5]} 21... Bd8 {[%clk 0:00:11.7]} 22. Qh3 {[%clk
0:00:20.1]} 22... Bb6 {[%clk 0:00:11.8]} 23. Be6+ {[%clk 0:00:15.2]} 23... Kh8
{[%clk 0:00:12.5]} 24. Bxb6 {[%clk 0:00:15.9]} 24... Qxb6+ {[%clk 0:00:13.8]}
25. Kh1 {[%clk 0:00:17.6]} 25... Rae8 {[%clk 0:00:14.1]} 26. Bf5 {[%clk
0:00:18.4]} 26... Rxe1 {[%clk 0:00:14.8]} 27. Rxe1 {[%clk 0:00:20.3]} 27... Qf2
{[%clk 0:00:16]} 28. Rg1 {[%clk 0:00:19.4]} 28... Nd5 {[%clk 0:00:15]} 29. Qxh7#
{[%clk 0:00:19.7]} 1-0

[Event "*** MasterClass Titled Tuesday Blitz"]
[Site "Chess.com"]
[Date "2017.08.01"]
[Round "5"]
[White "PelinGorki"]
[Black "evgenysharapov"]
[Result "1-0"]
[WhiteElo "2421"]
[BlackElo "2262"]
[TimeControl "180+2"]
[EndTime "14:03:16 PDT"]
[Termination "PelinGorki won by resignation"]

1. e4 {[%clk 0:03:01.9]} 1... c5 {[%clk 0:03:00.4]} 2. Nf3 {[%clk 0:03:02.7]}
2... d6 {[%clk 0:03:01.4]} 3. d4 {[%clk 0:03:04.2]} 3... cxd4 {[%clk 0:03:02.1]}
4. Nxd4 {[%clk 0:03:06.1]} 4... Nf6 {[%clk 0:03:02.6]} 5. Nc3 {[%clk 0:03:07.8]}
5... Nc6 {[%clk 0:03:03.3]} 6. Bg5 {[%clk 0:03:08.9]} 6... Qb6 {[%clk
0:03:03.7]} 7. Nb3 {[%clk 0:03:01.8]} 7... e6 {[%clk 0:03:03.8]} 8. Qd2 {[%clk
0:03:02]} 8... Be7 {[%clk 0:03:04.5]} 9. O-O-O {[%clk 0:03:03.5]} 9... O-O
{[%clk 0:03:04.5]} 10. h4 {[%clk 0:03:02.6]} 10... Rd8 {[%clk 0:03:01.4]} 11. h5
{[%clk 0:03:01.8]} 11... h6 {[%clk 0:03:00]} 12. Be3 {[%clk 0:03:03.3]} 12...
Qc7 {[%clk 0:03:01.1]} 13. f3 {[%clk 0:03:04.5]} 13... d5 {[%clk 0:03:01.8]} 14.
exd5 {[%clk 0:03:04.2]} 14... Nxd5 {[%clk 0:03:02.3]} 15. Nxd5 {[%clk
0:03:05.6]} 15... Rxd5 {[%clk 0:03:02.8]} 16. Qf2 {[%clk 0:02:52.9]} 16... Rxd1+
{[%clk 0:03:00.6]} 17. Kxd1 {[%clk 0:02:54.8]} 17... e5 {[%clk 0:03:00.8]} 18.
g4 {[%clk 0:02:40.5]} 18... Be6 {[%clk 0:02:55.5]} 19. Bd3 {[%clk 0:02:39.8]}
19... Nb4 {[%clk 0:02:33.2]} 20. Be4 {[%clk 0:02:40.1]} 20... Nxa2 {[%clk
0:02:30.7]} 21. g5 {[%clk 0:02:40.5]} 21... Rd8+ {[%clk 0:02:30.6]} 22. Ke1
{[%clk 0:02:38.3]} 22... Bxg5 {[%clk 0:02:19.8]} 23. Bxg5 {[%clk 0:02:31.9]}
23... hxg5 {[%clk 0:02:20.5]} 24. Nc5 {[%clk 0:01:38.1]} 24... Bc4 {[%clk
0:01:58.8]} 25. Nxb7 {[%clk 0:01:32.6]} 25... Rd4 {[%clk 0:01:47.3]} 26. Qe3
{[%clk 0:01:27.1]} 26... Nb4 {[%clk 0:01:27.2]} 27. h6 {[%clk 0:01:25.9]} 27...
Rxe4 {[%clk 0:01:19.2]} 28. Qxe4 {[%clk 0:01:24.5]} 28... Bd5 {[%clk 0:01:02.7]}
29. h7+ {[%clk 0:01:24.8]} 29... Kh8 {[%clk 0:01:02]} 30. Qxb4 {[%clk
0:01:26.7]} 30... Qb8 {[%clk 0:00:41.5]} 31. Qd6 {[%clk 0:01:20.3]} 31... Qc8
{[%clk 0:00:32.6]} 32. Qd8+ {[%clk 0:01:20.2]} 32... Qxd8 {[%clk 0:00:33.4]} 33.
Nxd8 {[%clk 0:01:22.1]} 33... g4 {[%clk 0:00:34.1]} 34. Nxf7+ {[%clk 0:01:13.2]}
34... Bxf7 {[%clk 0:00:34.4]} 35. fxg4 {[%clk 0:01:15.1]} 35... Bg6 {[%clk
0:00:35.5]} 36. c4 {[%clk 0:01:16]} 36... Bxh7 {[%clk 0:00:36.2]} 37. c5 {[%clk
0:01:12.5]} 37... Kg8 {[%clk 0:00:34]} 38. Rxh7 {[%clk 0:01:10.9]} 38... Kxh7
{[%clk 0:00:34.5]} 39. c6 {[%clk 0:01:12.4]} 1-0

[Event "*** MasterClass Titled Tuesday Blitz"]
[Site "Chess.com"]
[Date "2017.08.01"]
[Round "5"]
[White "Keaton87"]
[Black "igorkovalenko"]
[Result "0-1"]
[WhiteElo "2501"]
[BlackElo "2665"]
[TimeControl "180+2"]
[EndTime "14:03:16 PDT"]
[Termination "igorkovalenko won by resignation"]

1. e4 {[%clk 0:02:07.4]} 1... e6 {[%clk 0:02:58.6]} 2. d4 {[%clk 0:02:08]} 2...
d5 {[%clk 0:02:55.8]} 3. Nd2 {[%clk 0:02:09.1]} 3... c5 {[%clk 0:02:54.3]} 4.
Ngf3 {[%clk 0:02:08.9]} 4... cxd4 {[%clk 0:02:52.9]} 5. exd5 {[%clk 0:02:09.5]}
5... Qxd5 {[%clk 0:02:54.8]} 6. Bc4 {[%clk 0:02:10.3]} 6... Qd8 {[%clk
0:02:55.8]} 7. O-O {[%clk 0:02:10.1]} 7... Nc6 {[%clk 0:02:56.9]} 8. Nb3 {[%clk
0:02:11.4]} 8... a6 {[%clk 0:02:58.1]} 9. Nbxd4 {[%clk 0:02:12.4]} 9... Nxd4
{[%clk 0:02:59.2]} 10. Nxd4 {[%clk 0:02:13.2]} 10... Qc7 {[%clk 0:03:00.3]} 11.
Qe2 {[%clk 0:02:06.8]} 11... Bd6 {[%clk 0:02:58.6]} 12. Nf5 {[%clk 0:01:58.2]}
12... Bxh2+ {[%clk 0:02:58.1]} 13. Kh1 {[%clk 0:01:59.5]} 13... Be5 {[%clk
0:03:00]} 14. Re1 {[%clk 0:01:43.3]} 14... Bf6 {[%clk 0:02:29.3]} 15. Qg4 {[%clk
0:01:37.3]} 15... g6 {[%clk 0:02:24.3]} 16. Ng3 {[%clk 0:01:07.7]} 16... h5
{[%clk 0:02:19.7]} 17. Qe2 {[%clk 0:01:02]} 17... b5 {[%clk 0:02:15.9]} 18. Bd5
{[%clk 0:00:57.9]} 18... Rb8 {[%clk 0:02:15.6]} 19. Ne4 {[%clk 0:00:57.3]} 19...
Be7 {[%clk 0:02:11.6]} 20. Bb3 {[%clk 0:00:45.3]} 20... Nf6 {[%clk 0:02:05.4]}
21. Ng5 {[%clk 0:00:42.6]} 21... Rb6 {[%clk 0:02:05.9]} 22. Be3 {[%clk
0:00:36.2]} 22... Rc6 {[%clk 0:02:06.9]} 23. Qf3 {[%clk 0:00:28.8]} 23... O-O
{[%clk 0:01:54.8]} 24. Bf4 {[%clk 0:00:24.1]} 24... Qb7 {[%clk 0:01:50.7]} 25.
Be5 {[%clk 0:00:18.4]} 25... Ng4 {[%clk 0:01:45.7]} 26. Bf4 {[%clk 0:00:15]}
26... Rc5 {[%clk 0:01:26.3]} 27. Ne4 {[%clk 0:00:15.6]} 27... Rf5 {[%clk
0:01:23.4]} 28. Qg3 {[%clk 0:00:04]} 28... e5 {[%clk 0:00:33.2]} 29. Bd2 {[%clk
0:00:04.7]} 29... Kg7 {[%clk 0:00:33.3]} 30. f3 {[%clk 0:00:06.1]} 30... Nf6
{[%clk 0:00:34.5]} 31. Ng5 {[%clk 0:00:05.7]} 31... h4 {[%clk 0:00:31.4]} 32.
Qh3 {[%clk 0:00:05.5]} 32... Rxg5 {[%clk 0:00:32.2]} 0-1

[Event "*** MasterClass Titled Tuesday Blitz"]
[Site "Chess.com"]
[Date "2017.08.01"]
[Round "5"]
[White "SipkeErnst"]
[Black "Gordima"]
[Result "0-1"]
[WhiteElo "2516"]
[BlackElo "2608"]
[TimeControl "180+2"]
[EndTime "14:03:32 PDT"]
[Termination "Gordima won by checkmate"]

1. d4 {[%clk 0:03:01.1]} 1... Nf6 {[%clk 0:02:55.8]} 2. c4 {[%clk 0:02:57.4]}
2... g6 {[%clk 0:02:56.4]} 3. Nc3 {[%clk 0:02:57.6]} 3... Bg7 {[%clk 0:02:57.9]}
4. e4 {[%clk 0:02:57.3]} 4... d6 {[%clk 0:02:58.6]} 5. Nf3 {[%clk 0:02:57.9]}
5... O-O {[%clk 0:02:58.7]} 6. Be2 {[%clk 0:02:59.1]} 6... Na6 {[%clk
0:02:59.5]} 7. O-O {[%clk 0:02:52.4]} 7... e5 {[%clk 0:03:00.1]} 8. Be3 {[%clk
0:02:53.4]} 8... c6 {[%clk 0:02:59.2]} 9. d5 {[%clk 0:02:41.9]} 9... Ng4 {[%clk
0:02:59.3]} 10. Bg5 {[%clk 0:02:41]} 10... f6 {[%clk 0:03:00.2]} 11. Bd2 {[%clk
0:02:41.7]} 11... c5 {[%clk 0:02:53.1]} 12. Ne1 {[%clk 0:02:39.7]} 12... Nh6
{[%clk 0:02:52.1]} 13. Nd3 {[%clk 0:02:36.5]} 13... Nf7 {[%clk 0:02:41.5]} 14.
a3 {[%clk 0:02:34.7]} 14... b6 {[%clk 0:02:40.2]} 15. b4 {[%clk 0:02:35.2]}
15... f5 {[%clk 0:02:41.8]} 16. Rb1 {[%clk 0:02:31.9]} 16... Bh6 {[%clk
0:02:38.4]} 17. f4 {[%clk 0:02:26.3]} 17... fxe4 {[%clk 0:02:32.6]} 18. Nxe4
{[%clk 0:02:26.7]} 18... Bf5 {[%clk 0:02:34]} 19. Bf3 {[%clk 0:02:01.6]} 19...
exf4 {[%clk 0:02:26]} 20. Bc3 {[%clk 0:01:46.7]} 20... Bxe4 {[%clk 0:02:19.8]}
21. Bxe4 {[%clk 0:01:46.1]} 21... Ng5 {[%clk 0:02:21.4]} 22. Qg4 {[%clk
0:01:06]} 22... Qc8 {[%clk 0:01:57.3]} 23. Nf2 {[%clk 0:00:58.9]} 23... Qxg4
{[%clk 0:01:45]} 24. Nxg4 {[%clk 0:00:59.5]} 24... Bg7 {[%clk 0:01:46.6]} 25.
Bxg7 {[%clk 0:00:57.6]} 25... Kxg7 {[%clk 0:01:47.1]} 26. Bc2 {[%clk 0:00:58.4]}
26... Rae8 {[%clk 0:01:31.7]} 27. Ba4 {[%clk 0:00:52.8]} 27... Re4 {[%clk
0:01:26.8]} 28. h4 {[%clk 0:00:52.2]} 28... Nf7 {[%clk 0:01:20.7]} 29. Rfe1
{[%clk 0:00:53.6]} 29... Rxe1+ {[%clk 0:01:17.7]} 30. Rxe1 {[%clk 0:00:53]}
30... h5 {[%clk 0:01:19.3]} 31. Nf2 {[%clk 0:00:53.1]} 31... cxb4 {[%clk
0:01:11.8]} 32. Bb5 {[%clk 0:00:51.6]} 32... Nc7 {[%clk 0:01:12.3]} 33. axb4
{[%clk 0:00:52.6]} 33... Nxb5 {[%clk 0:01:12.5]} 34. cxb5 {[%clk 0:00:53.7]}
34... Ne5 {[%clk 0:01:08.9]} 35. Ne4 {[%clk 0:00:53.7]} 35... Re8 {[%clk
0:01:10.2]} 36. Ng5 {[%clk 0:00:42.3]} 36... Kf6 {[%clk 0:00:52.1]} 37. Rf1
{[%clk 0:00:18.2]} 37... Nd3 {[%clk 0:00:47.1]} 38. Rf3 {[%clk 0:00:17.7]} 38...
Re3 {[%clk 0:00:44.6]} 39. Kf1 {[%clk 0:00:12.6]} 39... Re1# {[%clk 0:00:45]}
0-1

[Event "*** MasterClass Titled Tuesday Blitz"]
[Site "Chess.com"]
[Date "2017.08.01"]
[Round "5"]
[White "AndrewMcStone"]
[Black "Quiet_Desperation"]
[Result "0-1"]
[WhiteElo "2064"]
[BlackElo "2104"]
[TimeControl "180+2"]
[EndTime "14:03:34 PDT"]
[Termination "Quiet_Desperation won on time"]

1. d4 {[%clk 0:03:01.9]} 1... Nf6 {[%clk 0:03:00.5]} 2. c4 {[%clk 0:03:02.6]}
2... e6 {[%clk 0:03:02.1]} 3. Nc3 {[%clk 0:03:03.1]} 3... Bb4 {[%clk 0:03:03.6]}
4. f3 {[%clk 0:03:04.2]} 4... d5 {[%clk 0:03:04.2]} 5. a3 {[%clk 0:03:04.4]}
5... Be7 {[%clk 0:03:05.1]} 6. e4 {[%clk 0:03:04.4]} 6... dxe4 {[%clk
0:03:06.4]} 7. fxe4 {[%clk 0:03:06.3]} 7... e5 {[%clk 0:03:07.8]} 8. d5 {[%clk
0:03:07.7]} 8... Bc5 {[%clk 0:03:08.7]} 9. Nf3 {[%clk 0:03:08.4]} 9... Qe7
{[%clk 0:03:02.4]} 10. Bg5 {[%clk 0:02:36.1]} 10... a5 {[%clk 0:03:01.6]} 11.
Qd2 {[%clk 0:02:26.5]} 11... Nbd7 {[%clk 0:02:56.7]} 12. Bd3 {[%clk 0:02:16.7]}
12... O-O {[%clk 0:02:56.5]} 13. O-O-O {[%clk 0:01:51.2]} 13... h6 {[%clk
0:02:39.6]} 14. Bh4 {[%clk 0:01:46]} 14... Re8 {[%clk 0:02:38.6]} 15. Rdf1
{[%clk 0:01:46.4]} 15... Qf8 {[%clk 0:02:39.7]} 16. h3 {[%clk 0:01:35.6]} 16...
Nh5 {[%clk 0:02:34.3]} 17. Ne2 {[%clk 0:01:20.7]} 17... Nb6 {[%clk 0:02:09.1]}
18. g4 {[%clk 0:01:18.1]} 18... Nf4 {[%clk 0:02:06.6]} 19. Nxf4 {[%clk
0:01:18.4]} 19... exf4 {[%clk 0:02:08]} 20. Qxf4 {[%clk 0:01:11.6]} 20... Bxa3
{[%clk 0:02:00]} 21. Rh2 {[%clk 0:01:04.6]} 21... Bc5 {[%clk 0:01:45.9]} 22. e5
{[%clk 0:00:57.9]} 22... a4 {[%clk 0:01:41.3]} 23. Qe4 {[%clk 0:00:53.7]} 23...
g6 {[%clk 0:01:42.7]} 24. Qf4 {[%clk 0:00:46.7]} 24... a3 {[%clk 0:01:40.2]} 25.
Bf6 {[%clk 0:00:23.7]} 25... a2 {[%clk 0:01:31.1]} 26. Kc2 {[%clk 0:00:19.5]}
26... a1=Q {[%clk 0:01:27.9]} 27. Rxa1 {[%clk 0:00:19.9]} 27... Rxa1 {[%clk
0:01:29.8]} 28. h4 {[%clk 0:00:12.9]} 28... Be7 {[%clk 0:01:17.5]} 29. h5 {[%clk
0:00:13]} 29... Bxf6 {[%clk 0:01:18.5]} 30. exf6 {[%clk 0:00:10.6]} 30... Qb4
{[%clk 0:00:30.1]} 31. hxg6 {[%clk 0:00:08.7]} 31... Qa4+ {[%clk 0:00:29.2]} 32.
Kc3 {[%clk 0:00:05.4]} 32... Nxd5+ {[%clk 0:00:30.6]} 33. cxd5 {[%clk
0:00:04.9]} 33... Qxf4 {[%clk 0:00:31.4]} 34. gxf7+ {[%clk 0:00:02.1]} 34...
Kxf7 {[%clk 0:00:32.1]} 0-1

[Event "*** MasterClass Titled Tuesday Blitz"]
[Site "Chess.com"]
[Date "2017.08.01"]
[Round "5"]
[White "LastHeroJr"]
[Black "HaryKane"]
[Result "1-0"]
[WhiteElo "2407"]
[BlackElo "2281"]
[TimeControl "180+2"]
[EndTime "14:03:36 PDT"]
[Termination "LastHeroJr won by resignation"]

1. e4 {[%clk 0:02:47.7]} 1... e6 {[%clk 0:03:00.7]} 2. d4 {[%clk 0:02:48.6]}
2... d5 {[%clk 0:03:01.6]} 3. Nd2 {[%clk 0:02:50.3]} 3... Nf6 {[%clk 0:03:00.4]}
4. e5 {[%clk 0:02:51.6]} 4... Nfd7 {[%clk 0:03:01.4]} 5. Bd3 {[%clk 0:02:53.3]}
5... c5 {[%clk 0:03:02.1]} 6. c3 {[%clk 0:02:55]} 6... Nc6 {[%clk 0:03:03]} 7.
Ne2 {[%clk 0:02:56.4]} 7... Qb6 {[%clk 0:03:02.9]} 8. O-O {[%clk 0:02:46.9]}
8... cxd4 {[%clk 0:03:03.5]} 9. cxd4 {[%clk 0:02:48.5]} 9... Nxd4 {[%clk
0:03:04.5]} 10. Nxd4 {[%clk 0:02:50.4]} 10... Qxd4 {[%clk 0:03:05.8]} 11. Nf3
{[%clk 0:02:52.1]} 11... Qb6 {[%clk 0:03:03.9]} 12. Bf4 {[%clk 0:02:44.1]} 12...
Nc5 {[%clk 0:02:57.4]} 13. Bc2 {[%clk 0:02:25.2]} 13... Bd7 {[%clk 0:02:57.8]}
14. Ng5 {[%clk 0:02:17.3]} 14... Be7 {[%clk 0:02:43]} 15. Qh5 {[%clk 0:02:11.2]}
15... g6 {[%clk 0:02:38.9]} 16. Qh6 {[%clk 0:02:09]} 16... Qxb2 {[%clk
0:02:26.7]} 17. Qg7 {[%clk 0:01:47.7]} 17... Rf8 {[%clk 0:02:20.1]} 18. Rac1
{[%clk 0:01:22.7]} 18... Bb5 {[%clk 0:02:05.5]} 19. Rfe1 {[%clk 0:01:18.4]}
19... O-O-O {[%clk 0:01:57]} 20. Nxf7 {[%clk 0:01:15.2]} 20... Rd7 {[%clk
0:01:40.3]} 21. Qxh7 {[%clk 0:01:08.6]} 21... Kb8 {[%clk 0:01:38]} 22. Bxg6
{[%clk 0:01:06.3]} 22... Qb4 {[%clk 0:01:15.7]} 23. Bh6 {[%clk 0:00:55.8]} 23...
Rc8 {[%clk 0:01:10.8]} 24. Rb1 {[%clk 0:00:52.8]} 24... Qa5 {[%clk 0:01:05.2]}
25. h4 {[%clk 0:00:46.8]} 25... Bd8 {[%clk 0:00:55.7]} 26. Bg5 {[%clk
0:00:40.5]} 26... Bb6 {[%clk 0:00:55.4]} 27. Qh6 {[%clk 0:00:30.4]} 27... Ne4
{[%clk 0:00:55.4]} 28. Bxe4 {[%clk 0:00:30.2]} 28... dxe4 {[%clk 0:00:56.2]} 29.
Nd6 {[%clk 0:00:30.9]} 29... Qxa2 {[%clk 0:00:38.1]} 30. Be3 {[%clk 0:00:27]}
30... Bd3 {[%clk 0:00:24.9]} 31. Nxc8 {[%clk 0:00:26.1]} 31... Bxb1 {[%clk
0:00:25.9]} 32. Nxb6 {[%clk 0:00:22.7]} 32... axb6 {[%clk 0:00:27.1]} 33. Qf8+
{[%clk 0:00:22.9]} 33... Ka7 {[%clk 0:00:25.5]} 34. Qb4 {[%clk 0:00:24]} 34...
Bd3 {[%clk 0:00:17.6]} 35. Bxb6+ {[%clk 0:00:25]} 35... Ka6 {[%clk 0:00:15.4]}
36. Bd4 {[%clk 0:00:26.2]} 36... Bb5 {[%clk 0:00:16.2]} 37. Ra1 {[%clk
0:00:23.8]} 1-0

[Event "*** MasterClass Titled Tuesday Blitz"]
[Site "Chess.com"]
[Date "2017.08.01"]
[Round "5"]
[White "MartinMatthiesen"]
[Black "Lord_Neezy"]
[Result "1-0"]
[WhiteElo "2218"]
[BlackElo "2159"]
[TimeControl "180+2"]
[EndTime "14:03:44 PDT"]
[Termination "MartinMatthiesen won by resignation"]

1. d4 {[%clk 0:03:01.2]} 1... e6 {[%clk 0:03:00.1]} 2. Nf3 {[%clk 0:03:00.8]}
2... c5 {[%clk 0:03:00.3]} 3. c3 {[%clk 0:02:58.4]} 3... Nf6 {[%clk 0:02:55.5]}
4. Bf4 {[%clk 0:02:57.8]} 4... d5 {[%clk 0:02:54.7]} 5. e3 {[%clk 0:02:56.7]}
5... Bd6 {[%clk 0:02:53.9]} 6. Ne5 {[%clk 0:02:52.8]} 6... b6 {[%clk 0:02:32.3]}
7. Bb5+ {[%clk 0:02:46.4]} 7... Kf8 {[%clk 0:02:19.1]} 8. O-O {[%clk 0:02:38.6]}
8... Ba6 {[%clk 0:02:10.5]} 9. Nd7+ {[%clk 0:02:20.4]} 9... Ke7 {[%clk
0:01:51.6]} 10. Bxd6+ {[%clk 0:02:11.8]} 10... Kxd6 {[%clk 0:01:53.5]} 11. Ne5
{[%clk 0:02:07.9]} 11... Qc7 {[%clk 0:01:09]} 12. Na3 {[%clk 0:02:02.9]} 12...
Ke7 {[%clk 0:01:02.3]} 13. c4 {[%clk 0:01:55.3]} 13... Rd8 {[%clk 0:00:58.3]}
14. Rc1 {[%clk 0:01:52.5]} 14... Kf8 {[%clk 0:00:37.1]} 15. Qa4 {[%clk
0:01:34.4]} 15... Bxb5 {[%clk 0:00:33.5]} 16. Nxb5 {[%clk 0:01:33.1]} 16... Qe7
{[%clk 0:00:29.8]} 17. Rfd1 {[%clk 0:01:26]} 17... a6 {[%clk 0:00:23]} 18. dxc5
{[%clk 0:00:57.4]} 18... bxc5 {[%clk 0:00:24.9]} 19. Qa3 {[%clk 0:00:49.4]}
19... Nfd7 {[%clk 0:00:16.2]} 20. Nf3 {[%clk 0:00:42.2]} 20... Nb6 {[%clk
0:00:13.7]} 21. Qa5 {[%clk 0:00:25.8]} 21... axb5 {[%clk 0:00:14.3]} 22. Qxb6
{[%clk 0:00:26.1]} 22... bxc4 {[%clk 0:00:14.6]} 23. a3 {[%clk 0:00:21.2]} 23...
Nd7 {[%clk 0:00:16.1]} 24. Qc7 {[%clk 0:00:21]} 24... Rdc8 {[%clk 0:00:15]} 25.
Qf4 {[%clk 0:00:21.6]} 25... Kg8 {[%clk 0:00:15.5]} 26. h4 {[%clk 0:00:21.7]}
26... Rcb8 {[%clk 0:00:16.4]} 27. Rc2 {[%clk 0:00:21.7]} 27... h6 {[%clk
0:00:17.2]} 28. g4 {[%clk 0:00:21.7]} 28... Nf8 {[%clk 0:00:16.8]} 29. g5 {[%clk
0:00:22.8]} 29... Ng6 {[%clk 0:00:16.5]} 30. Qg3 {[%clk 0:00:24]} 30... h5
{[%clk 0:00:17.1]} 31. Rcd2 {[%clk 0:00:23.6]} 31... Rb3 {[%clk 0:00:18]} 32.
Ne5 {[%clk 0:00:24.3]} 32... Nxe5 {[%clk 0:00:18.8]} 33. Qxe5 {[%clk 0:00:25.1]}
33... g6 {[%clk 0:00:20.6]} 34. Rxd5 {[%clk 0:00:25.8]} 34... Rxb2 {[%clk
0:00:17.7]} 35. Rd7 {[%clk 0:00:26]} 35... Qe8 {[%clk 0:00:14.9]} 36. Qxb2
{[%clk 0:00:26.9]} 36... Rb8 {[%clk 0:00:15.8]} 37. Qf6 {[%clk 0:00:27.8]} 37...
c3 {[%clk 0:00:15.4]} 38. Rd8 {[%clk 0:00:28.8]} 38... c2 {[%clk 0:00:15]} 39.
Rxe8+ {[%clk 0:00:29.7]} 39... Rxe8 {[%clk 0:00:16.7]} 40. Rc1 {[%clk
0:00:31.1]} 40... Rb8 {[%clk 0:00:17.7]} 41. Rxc2 {[%clk 0:00:32.2]} 1-0